bitfinex/quotes_SOLUSD_20241031
["timestamp","ask_amount","ask_price","bid_price","bid_amount"]
[1730368585893,15.8377754,175.25,175.21,23.902374]
[1730368586301,10.1315754,175.26,175.22,10.2570654]
[1730368586510,10.1315754,175.27,175.23,23.902374]
[1730368586685,10.1315754,175.28,175.23,34.0339494]
[1730368587907,10.1315754,175.28,175.24,0.12549]
[1730368588093,10.1315754,175.29,175.26,23.902374]
[1730368588788,10.1315754,175.29,175.25,23.902374]
[1730368589001,10.1315754,175.29,175.26,0.12549]
[1730368590210,16.1503,175.32,175.24,0.12549]
[1730368590211,10.1315754,175.27,175.24,0.12549]
[1730368590385,10.1315754,175.27,175.24,23.902374]
[1730368593007,10.1315754,175.25,175.18,10.1315754]
[1730368593317,10.1315754,175.22,175.17,10.1315754]
[1730368593788,10.1315754,175.23,175.18,10.1315754]
[1730368594719,15.8384754,175.23,175.19,23.902374]
[1730368595388,10.1315754,175.23,175.19,34.0339494]
[1730368595881,15.8380754,175.24,175.19,34.0339494]
[1730368596302,10.1315754,175.23,175.19,34.0339494]
[1730368596493,10.1315754,175.23,175.19,29.610274]
[1730368597395,10.1315754,175.23,175.19,39.7418494]
[1730368597800,10.1315754,175.25,175.21,23.902374]
[1730368598406,10.1315754,175.23,175.21,23.902374]
[1730368600016,10.1315754,175.24,175.21,23.902374]
[1730368601507,10.1315754,175.23,175.21,23.902374]
[1730368603221,10.1315754,175.24,175.21,23.902374]
[1730368603721,5.7062,175.25,175.21,34.0339494]
[1730368604408,10.1315754,175.24,175.21,23.902374]
[1730368613422,15.8379754,175.24,175.21,23.902374]
[1730368614236,5.7064,175.24,175.21,23.902374]
[1730368616737,10.1315754,175.24,175.21,23.902374]
[1730368617610,15.8379754,175.24,175.21,23.902374]
[1730368626834,10.1315754,175.23,175.2,0.12549]
[1730368627048,10.1315754,175.22,175.19,23.902374]
[1730368628111,10.1315754,175.22,175.19,29.610374]
[1730368631750,10.1315754,175.24,175.19,39.7419494]
[1730368632247,10.1315754,175.23,175.19,39.7419494]
[1730368635051,15.8383754,175.23,175.19,29.610374]
[1730368636936,10.1315754,175.22,175.19,29.610374]
[1730368639924,10.1315754,175.21,175.19,0.12549]
[1730368640126,10.1315754,175.2,175.17,0.99195669]
[1730368640432,5.708,175.19,175.17,0.99195669]
[1730368640644,5.708,175.19,175.16,10.1315754]
[1730368640950,15.8393754,175.2,175.16,10.1315754]
[1730368641838,15.8393754,175.2,175.17,0.12549]
[1730368644043,15.8393754,175.2,175.16,23.902374]
[1730368644354,10.1315754,175.19,175.16,23.902374]
[1730368646941,10.1315754,175.19,175.16,0.12549]
[1730368647142,15.8395754,175.19,175.16,0.12549]
[1730368648649,15.8395754,175.19,175.15,6.70119713]
[1730368648650,10.1315754,175.18,175.15,0.99189713]
[1730368648856,10.1315754,175.16,175.15,0.99189713]
[1730368650054,10.1315754,175.17,175.15,0.99189713]
[1730368651232,15.8402754,175.17,175.15,0.99189713]
[1730368652648,10.1315754,175.18,175.15,15.26529713]
[1730368652851,10.1315754,175.2,175.16,34.0339494]
[1730368653165,10.1315754,175.21,175.16,34.0339494]
[1730368654053,10.1315754,175.22,175.18,34.0339494]
[1730368654257,10.1315754,175.22,175.19,0.12549]
[1730368654937,10.1315754,175.24,175.21,0.12549]
[1730368656664,10.1315754,175.28,175.24,0.12549]
[1730368657573,5.7049,175.29,175.25,10.1315754]
[1730368658258,15.8360754,175.3,175.26,0.12549]
[1730368659767,16.0187,175.33,175.26,0.12549]
[1730368659768,10.1315754,175.32,175.28,0.12549]
[1730368660452,10.1315754,175.32,175.28,10.2570654]
[1730368660757,15.8355754,175.32,175.28,10.2570654]
[1730368662544,26.1502754,175.33,175.29,19.9668]
[1730368662762,15.8348754,175.34,175.29,30.0983754]
[1730368663155,15.8348754,175.34,175.29,24.3935754]
[1730368663351,10.1315754,175.35,175.3,34.0339494]
[1730368663569,15.8340754,175.36,175.32,10.1315754]
[1730368664271,10.1315754,175.38,175.33,10.1315754]
[1730368664651,15.8335754,175.38,175.33,10.1315754]
[1730368665257,10.1315754,175.37,175.33,0.12549]
[1730368665648,5.702,175.38,175.31,19.9639]
[1730368665649,10.1315754,175.34,175.31,0.12549]
[1730368665849,10.1315754,175.33,175.31,0.12549]
[1730368666869,15.8350754,175.33,175.31,0.12549]
[1730368667280,5.7035,175.33,175.31,0.12549]
[1730368668650,5.7035,175.33,175.3,23.776884]
[1730368668651,10.1315754,175.32,175.28,10.1315754]
[1730368668875,10.1315754,175.32,175.27,10.1315754]
[1730368669171,10.1315754,175.3,175.26,10.1315754]
[1730368670078,10.1315754,175.3,175.27,23.902374]
[1730368670460,10.1315754,175.3,175.25,10.1315754]
[1730368671770,10.1315754,175.29,175.25,24.027864]
[1730368672157,10.1315754,175.28,175.24,10.1315754]
[1730368672476,10.1315754,175.27,175.22,19.9742]
[1730368672662,10.1315754,175.26,175.22,14.2675]
[1730368673458,10.1315754,175.26,175.23,23.902374]
[1730368673647,10.1315754,175.24,175.23,0.12549]
[1730368673845,10.1315754,175.24,175.21,0.98964772]
[1730368674076,15.8380754,175.24,175.21,0.98964772]
[1730368675380,15.8380754,175.24,175.22,0.12549]
[1730368675580,5.7065,175.24,175.22,0.12549]
[1730368675880,10.1315754,175.23,175.22,0.12549]
[1730368677571,15.8383754,175.23,175.19,10.1315754]
[1730368677756,15.8383754,175.23,175.19,23.902374]
[1730368678073,15.8383754,175.23,175.14,10.1315754]
[1730368678074,10.1315754,175.2,175.14,10.1315754]
[1730368678283,10.1315754,175.18,175.14,10.1315754]
[1730368678451,10.1315754,175.19,175.14,11.12086772]
[1730368679268,15.8396754,175.19,175.15,23.902374]
[1730368681474,15.8386754,175.22,175.18,0.12549]
[1730368682771,5.7071,175.22,175.18,34.0339494]
[1730368683161,10.1315754,175.23,175.18,39.7421494]
[1730368683475,10.1315754,175.23,175.2,0.12549]
[1730368684463,15.8383754,175.23,175.19,0.12549]
[1730368685168,10.1315754,175.22,175.19,0.12549]
[1730368686891,5.7074,175.21,175.18,0.12549]
[1730368690868,10.1315754,175.24,175.2,0.12549]
[1730368691066,10.1315754,175.23,175.2,0.12549]
[1730368692294,15.8384754,175.23,175.2,0.12549]
[1730368700005,10.1315754,175.22,175.2,0.12549]
[1730368701404,15.8386754,175.22,175.2,0.12549]
[1730368701780,10.1315754,175.23,175.2,0.12549]
[1730368701980,14.2647,175.26,175.2,0.12549]
[1730368701981,10.1315754,175.24,175.2,0.12549]
[1730368702184,15.8376754,175.25,175.2,15.9647654]
[1730368702986,5.7061,175.25,175.21,10.1315754]
[1730368709109,5.7061,175.25,175.2,5.83319]
[1730368709110,10.1315754,175.25,175.2,15.9647654]
[1730368709707,15.8373754,175.26,175.21,10.1315754]
[1730368713800,5.7058,175.26,175.22,10.2570654]
[1730368714611,10.1315754,175.28,175.23,33.9084594]
[1730368714818,10.1315754,175.29,175.24,10.2570654]
[1730368715495,15.8360754,175.3,175.25,10.1315754]
[1730368715810,15.8360754,175.3,175.26,23.902374]
[1730368716015,15.8360754,175.3,175.26,29.608174]
[1730368716324,5.7045,175.3,175.26,39.7397494]
[1730368717000,5.7045,175.3,175.26,34.0339494]
[1730368717196,10.1315754,175.3,175.26,29.608074]
[1730368717696,10.1315754,175.29,175.26,23.902374]
[1730368720811,10.1315754,175.29,175.26,29.608074]
[1730368721114,10.1315754,175.29,175.26,23.902374]
[1730368723389,10.1315754,175.3,175.26,23.902374]
[1730368723612,10.1315754,175.29,175.26,23.902374]
[1730368724019,10.1315754,175.31,175.26,39.7396494]
[1730368725005,10.1315754,175.3,175.26,23.902374]
[1730368725194,10.1315754,175.29,175.26,23.902374]
[1730368726311,5.7035,175.33,175.26,23.902374]
[1730368726312,10.1315754,175.3,175.26,23.902374]
[1730368727213,10.1315754,175.3,175.26,29.608074]
[1730368727419,15.8360754,175.3,175.26,39.7396494]
[1730368731134,15.8360754,175.3,175.26,29.608074]
[1730368731301,10.1315754,175.28,175.25,0.12549]
[1730368732524,10.1315754,175.27,175.25,0.12549]
[1730368735799,15.8368754,175.28,175.25,0.12549]
[1730368739525,5.7053,175.28,175.25,0.12549]
[1730368742010,15.8362754,175.3,175.26,10.1315754]
[1730368744012,15.8362754,175.3,175.25,15.9631654]
[1730368744235,10.1315754,175.29,175.25,5.83159]
[1730368746340,10.1315754,175.31,175.26,33.9084594]
[1730368746626,10.1315754,175.36,175.31,23.902374]
[1730368746836,10.1315754,175.36,175.32,10.2570654]
[1730368747015,15.8338754,175.37,175.32,10.2570654]
[1730368747332,10.1315754,175.37,175.33,23.776884]
[1730368747534,10.1315754,175.37,175.34,0.12549]
[1730368748609,15.8337754,175.37,175.34,0.12549]
[1730368752239,10.1315754,175.35,175.31,23.902374]
[1730368752413,10.1315754,175.34,175.31,23.902374]
[1730368752620,10.1315754,175.33,175.28,10.1315754]
[1730368753015,10.1315754,175.32,175.28,10.1315754]
[1730368753418,10.1315754,175.3,175.26,10.1315754]
[1730368753921,10.1315754,175.3,175.25,10.2570654]
[1730368754527,15.8361754,175.3,175.25,15.8375754]
[1730368754851,15.8361754,175.3,175.26,0.12549]
[1730368755213,15.8361754,175.3,175.26,0.25098]
[1730368755439,10.1315754,175.28,175.25,0.12549]
[1730368755736,10.1315754,175.28,175.24,14.2657]
[1730368756550,15.8367754,175.28,175.24,14.2657]
[1730368756917,15.8367754,175.28,175.25,23.776884]
[1730368757331,15.8367754,175.28,175.26,0.12549]
[1730368759050,15.8367754,175.28,175.24,0.12549]
[1730368759056,10.1315754,175.27,175.24,0.12549]
[1730368759247,10.1315754,175.27,175.23,0.81492718]
[1730368759546,15.8367754,175.28,175.23,10.94650258]
[1730368759920,10.1315754,175.27,175.23,0.81492718]
[1730368760130,10.1315754,175.26,175.23,0.81492718]
[1730368760334,10.1315754,175.25,175.23,0.81492718]
[1730368760533,10.1315754,175.24,175.23,0.81492718]
[1730368761037,15.8379754,175.24,175.23,0.81492718]
[1730368765342,15.8379754,175.24,175.15,25.38830739]
[1730368765546,10.1315754,175.2,175.15,31.09760739]
[1730368765757,10.1315754,175.2,175.16,0.25098]
[1730368766526,10.1315754,175.2,175.16,24.027864]
[1730368767453,10.1315754,175.2,175.16,29.736864]
[1730368771148,15.8392754,175.21,175.16,39.8684394]
[1730368772448,10.1315754,175.22,175.18,0.12549]
[1730368772654,10.1315754,175.23,175.18,10.2570654]
[1730368772831,10.1315754,175.24,175.19,10.1315754]
[1730368773458,10.1315754,175.23,175.19,10.1315754]
[1730368773934,15.8385754,175.23,175.19,10.1315754]
[1730368774133,15.8369754,175.27,175.22,10.1315754]
[1730368775231,10.1315754,175.26,175.21,10.1315754]
[1730368776244,5.7061,175.25,175.21,10.1315754]
[1730368777235,10.1315754,175.27,175.21,10.1315754]
[1730368777452,5.7058,175.26,175.22,10.1315754]
[1730368787262,10.1315754,175.32,175.26,0.12549]
[1730368787462,5.7038,175.32,175.27,10.1315754]
[1730368787635,5.7035,175.33,175.29,10.1315754]
[1730368790366,10.1315754,175.3,175.26,34.0339494]
[1730368791165,10.1315754,175.28,175.23,10.1315754]
[1730368791536,5.7052,175.28,175.24,10.1315754]
[1730368794764,5.7052,175.28,175.25,10.1315754]
[1730368795163,5.7052,175.28,175.22,14.2675]
[1730368795164,10.1315754,175.27,175.22,10.1315754]
[1730368795371,10.1315754,175.25,175.21,10.1315754]
[1730368795664,10.1315754,175.24,175.19,10.1315754]
[1730368796444,5.7067,175.23,175.19,10.1315754]
[1730368796849,5.7067,175.23,175.19,15.8394754]
[1730368798155,10.1315754,175.23,175.19,15.8394754]
[1730368799473,10.1315754,175.23,175.19,5.7079]
[1730368799649,10.1315754,175.23,175.19,15.8394754]
[1730368806477,10.1315754,175.22,175.18,16.81918578]
[1730368806973,10.1315754,175.23,175.19,10.1315754]
[1730368807283,19.9696,175.27,175.19,10.1315754]
[1730368807284,10.1315754,175.24,175.19,10.1315754]
[1730368807778,10.1315754,175.23,175.19,10.1315754]
[1730368808349,10.1315754,175.23,175.19,0.12549]
[1730368808547,10.1315754,175.23,175.19,23.902374]
[1730368810369,15.8383754,175.23,175.19,23.902374]
[1730368811973,10.1315754,175.2,175.18,0.97931038]
[1730368812269,50.1097754,175.19,175.1,14.2773]
[1730368812470,50.1097754,175.19,175.11,0.97596983]
[1730368812672,10.1315754,175.14,175.11,0.97596983]
[1730368812878,10.1315754,175.14,175.1,19.9883]
[1730368813045,10.1315754,175.15,175.1,30.1198754]
[1730368813245,10.1315754,175.16,175.11,10.1315754]
[1730368813469,10.1315754,175.18,175.13,34.0339494]
[1730368813653,15.8395754,175.19,175.14,10.1315754]
[1730368813854,15.8395754,175.19,175.15,23.902374]
[1730368814474,10.1315754,175.18,175.15,23.902374]
[1730368814668,10.1315754,175.17,175.13,14.2748]
[1730368814977,10.1315754,175.17,175.13,19.9848]
[1730368815478,10.1315754,175.16,175.13,19.9848]
[1730368815774,10.1315754,175.16,175.13,14.2748]
[1730368816079,10.1315754,175.15,175.11,5.83609]
[1730368819376,10.1315754,175.16,175.11,15.9676654]
[1730368819576,10.1315754,175.18,175.13,33.9084594]
[1730368820762,15.8400754,175.18,175.13,39.6183594]
[1730368821857,10.1315754,175.17,175.13,29.486784]
[1730368822267,10.1315754,175.17,175.11,14.40219]
[1730368822268,10.1315754,175.15,175.11,20.11259]
[1730368822689,10.1315754,175.14,175.11,20.11259]
[1730368823073,10.1315754,175.15,175.11,20.11259]
[1730368826675,10.1315754,175.16,175.11,30.2441654]
[1730368827466,10.1315754,175.16,175.12,23.776884]
[1730368827668,15.8401754,175.18,175.13,30.1166754]
[1730368827984,0.1,175.27,175.16,23.902374]
[1730368827985,10.1315754,175.2,175.16,23.902374]
[1730368828182,10.1315754,175.22,175.17,10.1315754]
[1730368828478,10.1315754,175.23,175.18,34.0339494]
[1730368828685,10.1315754,175.23,175.19,10.1315754]
[1730368829761,15.8383754,175.23,175.19,10.1315754]
[1730368831463,25.4825754,175.25,175.2,10.1315754]
[1730368831663,5.7062,175.25,175.21,10.1315754]
[1730368833192,10.1315754,175.25,175.21,10.1315754]
[1730368833380,10.1315754,175.25,175.2,34.0339494]
[1730368833694,10.1315754,175.24,175.2,23.902374]
[1730368833991,10.1315754,175.22,175.18,33.9084594]
[1730368834201,10.1315754,175.24,175.2,23.776884]
[1730368834874,10.1315754,175.24,175.2,33.9084594]
[1730368835072,15.8379754,175.25,175.2,33.9084594]
[1730368837968,5.7064,175.25,175.22,10.1315754]
[1730368838179,10.1315754,175.27,175.22,10.1315754]
[1730368838371,15.8366754,175.28,175.24,10.1315754]
[1730368838582,26.2264754,175.29,175.25,10.1315754]
[1730368838773,15.8364754,175.29,175.25,10.1315754]
[1730368838967,5.7049,175.29,175.25,10.1315754]
[1730368839174,15.8364754,175.29,175.25,10.1315754]
[1730368839485,5.7049,175.29,175.25,10.1315754]
[1730368839875,5.7049,175.29,175.26,10.1315754]
[1730368840481,10.1315754,175.31,175.26,10.1315754]
[1730368840801,15.8359754,175.31,175.26,10.1315754]
[1730368842092,5.7044,175.31,175.27,34.0339494]
[1730368843087,15.0353,175.33,175.3,10.1315754]
[1730368843088,5.7035,175.33,175.3,10.1315754]
[1730368843296,5.7035,175.33,175.29,10.1315754]
[1730368843595,5.7035,175.33,175.3,10.1315754]
[1730368844266,15.8347754,175.34,175.3,10.1315754]
[1730368844792,15.8340754,175.36,175.32,10.1315754]
[1730368845170,15.8340754,175.36,175.31,33.9084594]
[1730368845377,5.7025,175.36,175.32,10.2570654]
[1730368845691,15.8340754,175.36,175.32,0.12549]
[1730368846586,10.1315754,175.35,175.32,0.12549]
[1730368847187,19.9544,175.4,175.29,23.902374]
[1730368847188,10.1315754,175.33,175.29,23.902374]
[1730368847580,10.1315754,175.34,175.29,34.0339494]
[1730368848301,5.7035,175.33,175.29,34.0339494]
[1730368848487,15.8350754,175.33,175.29,23.902374]
[1730368851780,10.1315754,175.34,175.29,34.0339494]
[1730368852984,5.7035,175.33,175.29,34.0339494]
[1730368856904,15.8347754,175.34,175.29,39.7385494]
[1730368857200,15.8343754,175.36,175.31,10.1315754]
[1730368858991,10.1315754,175.35,175.3,15.8359754]
[1730368859189,10.1315754,175.35,175.31,23.902374]
[1730368859394,15.8346754,175.35,175.31,23.902374]
[1730368859595,10.1315754,175.34,175.31,23.902374]
[1730368859899,10.1315754,175.34,175.3,5.7044]
[1730368859900,10.1315754,175.34,175.3,15.8360754]
[1730368860486,10.1315754,175.35,175.31,23.902374]
[1730368861404,5.7031,175.35,175.31,34.0339494]
[1730368862095,15.8346754,175.35,175.31,23.902374]
[1730368864306,10.1315754,175.34,175.31,23.902374]
[1730368865707,15.8347754,175.34,175.31,23.902374]
[1730368867192,10.1315754,175.34,175.31,23.902374]
[1730368867506,56.0322016,175.41,175.31,39.7380494]
[1730368867507,10.1315754,175.35,175.31,39.7380494]
[1730368867816,10.1315754,175.35,175.31,29.606474]
[1730368867997,10.1315754,175.35,175.31,23.902374]
[1730368868194,10.1315754,175.34,175.31,23.902374]
[1730368869719,15.8348754,175.34,175.31,23.902374]
[1730368870607,10.1315754,175.35,175.31,23.902374]
[1730368870914,10.1315754,175.37,175.32,10.1315754]
[1730368871106,10.1315754,175.37,175.33,23.902374]
[1730368872324,10.1315754,175.35,175.32,0.12549]
[1730368872526,10.1315754,175.33,175.3,0.12549]
[1730368872696,10.1315754,175.33,175.3,23.902374]
[1730368873808,10.1315754,175.32,175.29,0.78940746]
[1730368875018,10.1315754,175.31,175.29,0.78940746]
[1730368876525,10.1315754,175.3,175.29,0.78940746]
[1730368878120,10.1315754,175.31,175.29,0.78940746]
[1730368878423,10.1315754,175.32,175.29,0.78940746]
[1730368878633,10.1315754,175.31,175.29,0.78940746]
[1730368880118,10.1315754,175.3,175.29,0.78940746]
[1730368880517,15.8360754,175.3,175.29,0.78940746]
[1730368888833,5.7045,175.3,175.29,0.78940746]
[1730368891135,10.1315754,175.3,175.29,0.78940746]
[1730368892328,15.8360754,175.3,175.29,0.78940746]
[1730368895730,10.1315754,175.31,175.29,0.78940746]
[1730368896232,10.1315754,175.3,175.29,0.78940746]
[1730368897036,10.1315754,175.3,175.26,23.902374]
[1730368897037,15.8362754,175.3,175.26,23.902374]
[1730368898110,10.1315754,175.29,175.26,23.902374]
[1730368904845,10.1315754,175.29,175.25,0.80522408]
[1730368905144,10.1315754,175.26,175.25,0.80522408]
[1730368906734,10.1315754,175.27,175.25,0.80522408]
[1730368907036,15.8371754,175.27,175.25,0.80522408]
[1730368908545,10.1315754,175.26,175.25,0.80522408]
[1730368909643,15.8373754,175.26,175.25,0.80522408]
[1730368912028,10.1315754,175.26,175.25,0.80522408]
[1730368914749,15.8373754,175.26,175.25,0.80522408]
[1730368918655,5.7058,175.26,175.25,0.80522408]
[1730368920924,10.1315754,175.26,175.25,0.80522408]
[1730368922050,15.8373754,175.26,175.25,0.80522408]
[1730368923633,10.1315754,175.27,175.25,0.80522408]
[1730368924850,10.1315754,175.29,175.25,0.80522408]
[1730368925863,10.1315754,175.3,175.26,23.902374]
[1730368926159,5.7038,175.32,175.27,10.1315754]
[1730368926160,10.1315754,175.32,175.27,10.1315754]
[1730368926935,10.1315754,175.33,175.28,34.0339494]
[1730368927137,10.1315754,175.34,175.3,23.902374]
[1730368927941,15.8344754,175.35,175.3,34.0339494]
[1730368928958,15.8344754,175.35,175.3,39.7383494]
[1730368929459,10.1315754,175.36,175.31,10.1315754]
[1730368929765,10.1315754,175.35,175.3,53.9995494]
[1730368933749,10.1315754,175.34,175.3,19.9657]
[1730368934142,10.1315754,175.35,175.31,10.1315754]
[1730368934655,10.1315754,175.36,175.32,23.902374]
[1730368935661,15.8341754,175.36,175.32,23.902374]
[1730368936361,10.1315754,175.35,175.32,23.902374]
[1730368937264,10.1315754,175.34,175.3,24.3927754]
[1730368937472,10.1315754,175.34,175.31,0.12549]
[1730368937838,10.1315754,175.34,175.31,23.902374]
[1730368938765,5.7026,175.36,175.31,23.902374]
[1730368938766,10.1315754,175.35,175.31,23.902374]
[1730368938946,15.8344754,175.35,175.31,23.902374]
[1730368943369,10.1315754,175.34,175.31,23.902374]
[1730368943581,10.1315754,175.33,175.31,23.902374]
[1730368945670,10.1315754,175.34,175.31,23.902374]
[1730368951860,10.1315754,175.35,175.31,23.902374]
[1730368953364,10.1315754,175.36,175.31,23.902374]
[1730368953567,5.7028,175.35,175.31,23.902374]
[1730368953978,15.8343754,175.35,175.31,23.902374]
[1730368958958,5.7028,175.35,175.31,34.0339494]
[1730368959162,10.1315754,175.36,175.31,34.0339494]
[1730368959997,15.8327754,175.4,175.35,10.1315754]
[1730368960375,10.1315754,175.39,175.35,10.1315754]
[1730368961272,10.1315754,175.38,175.35,23.902374]
[1730368961778,10.1315754,175.38,175.35,0.12549]
[1730368965415,10.1315754,175.39,175.35,0.12549]
[1730368966468,5.7017,175.39,175.35,10.2570654]
[1730368967504,15.8332754,175.39,175.35,0.12549]
[1730368969072,10.1315754,175.4,175.36,23.776884]
[1730368970509,15.8328754,175.4,175.36,23.776884]
[1730368970682,15.9267,175.42,175.37,10.2570654]
[1730368970683,15.8325754,175.41,175.37,10.2570654]
[1730368971399,15.8325754,175.41,175.37,0.12549]
[1730368973188,15.8325754,175.41,175.37,5.82749]
[1730368973382,15.8325754,175.41,175.38,23.776884]
[1730368973582,5.701,175.41,175.38,33.9084594]
[1730368975269,10.1315754,175.41,175.38,23.776884]
[1730368976496,15.8324754,175.41,175.38,23.776884]
[1730368980104,10.1315754,175.42,175.39,0.12549]
[1730368980482,5.6996,175.45,175.39,0.12549]
[1730368980483,10.1315754,175.41,175.39,0.12549]
[1730368985504,14.2485,175.46,175.4,33.9084594]
[1730368985505,15.8311754,175.45,175.4,33.9084594]
[1730368985816,15.8311754,175.45,175.4,10.1315754]
[1730368988013,10.1315754,175.44,175.4,23.776884]
[1730368989711,15.8316754,175.44,175.4,23.776884]
[1730368994319,10.1315754,175.42,175.37,15.8336754]
[1730368995115,10.1315754,175.42,175.35,14.2567]
[1730368995116,10.1315754,175.4,175.35,10.1315754]
[1730368995309,19.9499,175.44,175.32,10.1315754]
[1730368995310,10.1315754,175.37,175.32,10.1315754]
[1730368995622,10.1315754,175.38,175.34,10.1315754]
[1730368995791,10.1315754,175.39,175.34,10.1315754]
[1730368995990,26.1806754,175.41,175.36,10.1315754]
[1730368996202,10.1315754,175.42,175.38,10.1315754]
[1730368996392,15.8323754,175.42,175.38,10.1315754]
[1730368996805,10.1315754,175.43,175.38,10.1315754]
[1730368997009,15.8317754,175.43,175.39,10.1315754]
[1730368997221,15.8317754,175.43,175.39,23.902374]
[1730368998393,15.8315754,175.44,175.39,39.7354494]
[1730368998617,15.8315754,175.44,175.39,53.9893494]
[1730368998618,10.1315754,175.44,175.39,53.9893494]
[1730368998930,10.1315754,175.45,175.41,0.12549]
[1730368999098,10.1315754,175.45,175.41,23.902374]
[1730368999610,10.1315754,175.45,175.41,10.2570654]
[1730368999811,10.1315754,175.45,175.41,0.12549]
[1730369003019,15.8312754,175.45,175.41,0.12549]
[1730369003702,10.1315754,175.44,175.41,0.12549]
[1730369005722,5.6997,175.45,175.41,10.2570654]
[1730369006029,5.6997,175.45,175.41,15.9578654]
[1730369007424,10.1315754,175.46,175.42,23.776884]
[1730369007724,10.1315754,175.47,175.43,0.12549]
[1730369008820,10.1315754,175.46,175.43,0.12549]
[1730369009018,10.1315754,175.46,175.43,5.82569]
[1730369010318,32.8923042,175.48,175.44,23.776884]
[1730369013510,32.8923042,175.48,175.43,30.2078654]
[1730369013511,10.1315754,175.47,175.43,14.37609]
[1730369013817,10.1315754,175.46,175.43,14.37609]
[1730369014219,10.1315754,175.45,175.4,30.0857754]
[1730369014831,10.1315754,175.45,175.41,23.776884]
[1730369015459,15.8312754,175.45,175.41,23.776884]
[1730369016626,10.1315754,175.45,175.42,19.9521]
[1730369016807,10.1315754,175.46,175.42,19.9521]
[1730369017009,10.1315754,175.46,175.42,14.2515]
[1730369017429,15.8311754,175.46,175.42,14.2515]
[1730369018431,10.1315754,175.44,175.4,10.1315754]
[1730369018642,10.1315754,175.44,175.39,10.78217621]
[1730369018819,10.1315754,175.44,175.39,16.48367621]
[1730369019217,10.1315754,175.44,175.39,10.78217621]
[1730369019420,5.7002,175.43,175.39,10.78217621]
[1730369020845,5.7002,175.43,175.39,16.48367621]
[1730369021923,15.8317754,175.43,175.39,0.65060081]
[1730369022140,10.1315754,175.42,175.39,0.65060081]
[1730369023830,15.8324754,175.42,175.39,0.65060081]
[1730369025030,5.7009,175.42,175.39,0.65060081]
[1730369025428,10.1315754,175.42,175.39,0.65060081]
[1730369026448,10.1315754,175.43,175.39,0.65060081]
[1730369027434,5.7006,175.42,175.39,0.65060081]
[1730369030145,10.1315754,175.42,175.39,0.65060081]
[1730369030478,10.1315754,175.41,175.39,0.65060081]
[1730369032556,15.8327754,175.41,175.39,0.65060081]
[1730369034735,10.1315754,175.41,175.39,0.65060081]
[1730369034934,10.1315754,175.43,175.39,6.35200081]
[1730369035135,10.1315754,175.44,175.39,30.73747621]
[1730369036344,15.8311754,175.45,175.4,10.1315754]
[1730369037855,15.8311754,175.45,175.4,15.8325754]
[1730369038543,15.8311754,175.45,175.4,30.0856754]
[1730369039152,15.8311754,175.45,175.4,19.9541]
[1730369039153,5.6996,175.45,175.4,19.9541]
[1730369039362,10.1315754,175.43,175.4,19.9541]
[1730369039825,10.1315754,175.44,175.4,19.9541]
[1730369044732,10.1315754,175.43,175.4,19.9541]
[1730369045262,10.1315754,175.44,175.4,30.0856754]
[1730369045562,19.9463,175.47,175.39,0.65060081]
[1730369045854,10.1315754,175.42,175.39,0.65060081]
[1730369046245,10.1315754,175.42,175.39,6.35200081]
[1730369048461,10.1315754,175.41,175.39,6.35200081]
[1730369051461,10.1315754,175.41,175.39,0.65060081]
[1730369051758,15.8324754,175.41,175.39,0.65060081]
[1730369051966,10.1315754,175.4,175.39,0.65060081]
[1730369052344,30.1315754,175.4,175.32,12.30728923]
[1730369052564,10.1315754,175.36,175.32,12.30728923]
[1730369053862,10.1315754,175.37,175.33,10.1315754]
[1730369054063,20.0,175.4,175.35,10.1315754]
[1730369054064,15.8327754,175.4,175.35,10.1315754]
[1730369054256,10.1315754,175.4,175.35,10.1315754]
[1730369056875,10.1315754,175.4,175.35,15.8341754]
[1730369058676,10.1315754,175.41,175.37,34.0339494]
[1730369058978,10.1315754,175.42,175.37,34.0339494]
[1730369059152,10.1315754,175.42,175.38,10.1315754]
[1730369059348,6.5332,175.45,175.39,23.902374]
[1730369059349,10.1315754,175.43,175.39,23.902374]
[1730369059662,10.1315754,175.44,175.39,10.1315754]
[1730369059963,15.8311754,175.45,175.4,10.1315754]
[1730369060153,10.1315754,175.44,175.4,10.1315754]
[1730369060546,10.1315754,175.44,175.4,15.8327754]
[1730369061257,15.8315754,175.44,175.4,5.7012]
[1730369062872,15.8315754,175.44,175.39,15.8330754]
[1730369063477,15.8315754,175.44,175.4,10.1315754]
[1730369063875,15.8315754,175.44,175.39,10.1315754]
[1730369064174,10.1315754,175.43,175.39,23.902374]
[1730369064976,15.8315754,175.44,175.4,10.1315754]
[1730369066669,15.8315754,175.44,175.39,39.7353494]
[1730369067471,10.1315754,175.44,175.4,10.1315754]